fUSD/lending_fUSD_20240901
["ID","MTS","AMOUNT","RATE_DAILY","PERIOD"]
[336795074,1725159038449,-150.0,0.00012734,2]
[336795075,1725159038458,-150.0,0.00012737,2]
[336795076,1725159038467,-499.99,0.00012737,2]
[336795077,1725159038477,-150.0,0.00012743,2]
[336795078,1725159038487,-150.0,0.00012743,2]
[336795079,1725159038497,-14.99001779,0.00012744,2]
[336795080,1725159038509,-135.00998221,0.00012744,2]
[336795081,1725159038519,-300.0,0.00012744,2]
[336795082,1725159038528,-150.0,0.00012745,2]
[336795083,1725159038538,-150.0,0.00012745,2]
[336795084,1725159038548,-150.0,0.00012745,2]
[336795085,1725159038559,-150.0,0.00012746,2]
[336795086,1725159038572,-150.0,0.0001276,2]
[336795087,1725159038583,-150.0,0.00012765,2]
[336795088,1725159038593,-150.0,0.00012769,2]
[336795089,1725159038603,-150.0,0.00012774,2]
[336795090,1725159038613,-150.0,0.00012777,2]
[336795091,1725159038622,-150.0,0.00012779,2]
[336795092,1725159038631,-150.0,0.00012782,2]
[336795093,1725159038639,-150.0,0.0001279,2]
[336795094,1725159038652,-150.0,0.0001279,2]
[336795095,1725159038662,-150.0,0.00012793,2]
[336795096,1725159038671,-150.0,0.00012799,2]
[336795097,1725159038682,-259.33242081,0.000128,2]
[336795098,1725159038693,-1757.25375119,0.000128,2]
[336795100,1725159038703,-150.0,0.00012805,2]
[336795102,1725159038712,-150.0,0.00012807,2]
[336795104,1725159038722,-150.0,0.00012815,2]
[336795106,1725159038733,-150.0,0.00012818,2]
[336795108,1725159038742,-150.0,0.00012819,2]
[336795110,1725159038751,-150.0,0.0001282,2]
[336795112,1725159038760,-150.56,0.00012822,2]
[336795114,1725159038770,-150.0,0.00012822,2]
[336795116,1725159038779,-150.0,0.00012823,2]
[336795118,1725159038788,-150.0,0.00012824,2]
[336795120,1725159038799,-150.0,0.00012826,2]
[336795122,1725159038808,-150.0,0.00012831,2]
[336795124,1725159038817,-150.0,0.00012839,2]
[336795126,1725159038827,-150.0,0.00012839,2]
[336795128,1725159038836,-150.0,0.00012845,2]
[336795130,1725159038846,-150.0,0.00012846,2]
[336795132,1725159038856,-150.0,0.00012847,2]
[336795134,1725159038865,-150.0,0.00012849,2]
[336795166,1725159038874,-150.0,0.00012851,2]
[336795174,1725159039137,-150.0,0.00012851,2]
[336795176,1725159039148,-150.0,0.00012854,2]
[336795178,1725159039158,-150.0,0.00012856,2]
[336795181,1725159039169,-150.0,0.00012858,2]
[336795183,1725159039178,-150.0,0.0001286,2]
[336795185,1725159039188,-150.0,0.0001286,2]
[336795187,1725159039200,-150.0,0.00012861,2]
[336795189,1725159039210,-150.0,0.00012863,2]
[336795191,1725159039219,-150.0,0.00012863,2]
[336795193,1725159039228,-150.0,0.00012867,2]
[336795195,1725159039237,-150.0,0.00012867,2]
[336795197,1725159039246,-150.0,0.00012869,2]
[336795199,1725159039255,-150.0,0.00012869,2]
[336795201,1725159039264,-150.0,0.0001287,2]
[336795203,1725159039274,-150.0,0.00012874,2]
[336795205,1725159039283,-150.0,0.00012874,2]
[336795207,1725159039292,-150.0,0.00012877,2]
[336795209,1725159039302,-150.0,0.00012881,2]
[336795211,1725159039310,-150.0,0.00012882,2]
[336795213,1725159039320,-150.0,0.00012882,2]
[336795215,1725159039329,-150.0,0.00012882,2]
[336795217,1725159039339,-150.0,0.00012886,2]
[336795219,1725159039348,-150.0,0.00012891,2]
[336795221,1725159039358,-150.0,0.00012895,2]
[336795223,1725159039367,-893.56440671,0.00012899,2]
[336795225,1725159039380,-8693.51986952,0.00012899,2]
[336795227,1725159039391,-1381.24087936,0.00012899,2]
[336795229,1725159039403,-1000.19973099,0.00012899,2]
[336795231,1725159039414,-775.61553959,0.00012899,2]
[336795233,1725159039425,-3190.90408353,0.00012899,2]
[336795236,1725159039436,-3146.7938,0.00012899,2]
[336795240,1725159039469,-3048.91164779,0.00012899,2]
[336795244,1725159039496,-2608.2970021,0.00012899,2]
[336795246,1725159039507,-305.65924695,0.00012899,2]
[336795248,1725159039517,-177.388712,0.000129,2]
[336795250,1725159039525,-1000.0,0.000129,2]
[336795252,1725159039534,-181.98983705,0.000129,2]
[336795254,1725159039544,-150.0,0.00012908,2]
[336795256,1725159039554,-150.0,0.00012909,2]
[336795258,1725159039566,-150.0,0.00012911,2]
[336795260,1725159039576,-150.0,0.00012916,2]
[336795262,1725159039585,-150.0,0.00012921,2]
[336795264,1725159039595,-150.0,0.00012931,2]
[336795266,1725159039606,-150.0,0.00012935,2]
[336795268,1725159039615,-150.0,0.00012942,2]
[336795270,1725159039625,-150.0,0.00012943,2]
[336795272,1725159039634,-150.0,0.00012943,2]
[336795274,1725159039644,-150.0,0.00012944,2]
[336795276,1725159039654,-150.0,0.00012951,2]
[336795278,1725159039663,-150.0,0.00012951,2]
[336795280,1725159039672,-150.0,0.00012952,2]
[336795282,1725159039682,-150.0,0.00012956,2]
[336795284,1725159039691,-150.0,0.00012957,2]
[336795286,1725159039701,-150.0,0.00012961,2]
[336795288,1725159039710,-150.0,0.00012965,2]
[336795290,1725159039720,-150.0,0.00012969,2]
[336795292,1725159039729,-150.0,0.00012972,2]
[336795294,1725159039739,-150.0,0.00012973,2]
[336795296,1725159039748,-150.0,0.00012977,2]
[336795298,1725159039757,-150.0,0.00012977,2]
[336795300,1725159039767,-150.0,0.00012978,2]
[336795302,1725159039777,-150.0,0.00012978,2]
[336795304,1725159039789,-150.0,0.00012984,2]
[336795306,1725159039798,-150.0,0.00012991,2]
[336795308,1725159039808,-150.0,0.00012993,2]
[336795310,1725159039817,-150.0,0.00012993,2]
[336795312,1725159039827,-150.0,0.00012993,2]
[336795314,1725159039836,-150.0,0.00012994,2]
[336795316,1725159039845,-150.0,0.00012996,2]
[336795317,1725159039855,-150.0,0.00012996,2]
[336795319,1725159039865,-211.3483551,0.00012996,2]
[336795321,1725159039874,-17099.2400142,0.00012996,2]
[336795323,1725159039884,-782.4947701,0.00012996,2]
[336795325,1725159039893,-337.2761114,0.00012996,2]
[336795327,1725159039902,-150.0,0.00012997,2]
[336795329,1725159039912,-327.5646787,0.00012998,2]
[336795331,1725159039921,-355.92379571,0.00012998,2]
[336795333,1725159039932,-500.0,0.00012998,2]
[336795335,1725159039941,-333.0,0.00012999,2]
[336795337,1725159039952,-225.40845732,0.00012999,2]
[336795339,1725159039961,-3733.29395948,0.00012999,2]
[336795342,1725159039978,-63603.54280045,0.00012999,2]
[336795350,1725159040110,-884.28010879,0.00012999,2]
[336795351,1725159040122,-1768.43667,0.00012999,2]
[336795352,1725159040510,-4592.72827989,0.00012999,2]
[336795353,1725159040523,-589.41537892,0.00012999,2]
[336795354,1725159040535,-1756.63546,0.00012999,2]
[336795355,1725159040546,-3017.34446,0.00012999,2]
[336795356,1725159040557,-567754.06916356,0.00012999,2]
[336795357,1725159040570,-917.0,0.00012999,2]
[336795358,1725159040579,-896511.13871547,0.00013,2]
[336795359,1725159040588,-2735930.68656601,0.00013,2]
[336795360,1725159040597,-1839211.13341737,0.00013,2]
[336795361,1725159040609,-1082.10999925,0.00013,2]
[336795362,1725159040620,-312.91,0.00013,2]
[336795372,1725159040750,-4716.17775399,0.00013,2]
[336795374,1725159040761,-605.06484465,0.00013,2]
[336795421,1725159043331,-1128.06641355,0.00013,2]
[336795423,1725159043343,-912.45,0.00013,2]
[336795425,1725159043355,-6400.89541296,0.00013,2]
[336795427,1725159043366,-382.12258582,0.00013,2]
[336795429,1725159043377,-7251.25747153,0.00013,2]
[336795430,1725159043390,-1164.90682513,0.00013,2]
[336795431,1725159043401,-821.406033,0.00013,2]
[336795432,1725159043412,-290.57000001,0.00013,2]
[336795433,1725159043423,-567.63859501,0.00013,2]
[336795434,1725159043434,-1132.90720286,0.00013,2]
[336795435,1725159043787,-4526.756931,0.00013,2]
[336795436,1725159043800,-361.6920653,0.00013,2]
[336795437,1725159043838,-384.59560439,0.00013,2]
[336795438,1725159043848,-3067.36856786,0.00013,2]
[336795439,1725159043859,-814.55264413,0.00013,2]
[336795440,1725159043870,-1149.07228572,0.00013,2]
[336795441,1725159043881,-757.85641077,0.00013,2]
[336795443,1725159044591,-367.69336575,0.00013,2]
[336795444,1725159044602,-369.12270208,0.00013,2]
[336795445,1725159044613,-2057.25000025,0.00013,2]
[336795446,1725159044624,-1732.275,0.00013,2]
[336795447,1725159044635,-8632.87567252,0.00013,2]
[336795448,1725159044646,-11367.3242289,0.00013,2]
[336795449,1725159044657,-918.3487726,0.00013,2]
[336795450,1725159044668,-1559.45168708,0.00013,2]
[336795451,1725159044679,-273.88727203,0.00013,2]
[336795452,1725159044690,-586.29024,0.00013,2]
[336795453,1725159044715,-503.19150413,0.00013,2]
[336795454,1725159044726,-6796.93298039,0.00013,2]
[336795455,1725159044737,-926.44951406,0.00013,2]
[336795456,1725159044749,-841.5247125,0.00013,2]
[336795457,1725159046300,-827.0,0.00013,2]
[336795458,1725159046310,-21000.46558801,0.00013,2]
[336795459,1725159046321,-2127.62018939,0.00013,2]
[336795460,1725159046332,-46674.37652944,0.00013,2]
[336795461,1725159046343,-2654.94895016,0.00013,2]
[336795462,1725159046355,-11282.35319939,0.00013,2]
[336795463,1725159046365,-2886.749998,0.00013,2]
[336795464,1725159046376,-283.51720375,0.00013,2]
[336795465,1725159046387,-277.38,0.00013,2]
[336795466,1725159046399,-1494.82037085,0.00013,2]
[336795467,1725159046410,-2009.13156047,0.00013,2]
[336795468,1725159046421,-361.43277495,0.00013,2]
[336795469,1725159046432,-37354.04106518,0.00013,2]
[336795470,1725159046445,-1346.35809449,0.00013,2]
[336795471,1725159046456,-8027.63642451,0.00013,2]
[336795472,1725159046607,-1084.66646519,0.00013,2]
[336795473,1725159046619,-138962.63327275,0.00013,2]
[336795474,1725159046631,-3407.63288819,0.00013,2]
[336795475,1725159046643,-900.09,0.00013,2]
[336795476,1725159046655,-668.68741517,0.00013,2]
[336795477,1725159046666,-989.78199769,0.00013,2]
[336795478,1725159046677,-1022.70162,0.00013,2]
[336795479,1725159046688,-311.05675641,0.00013,2]
[336795480,1725159046698,-718.1047832,0.00013,2]
[336795481,1725159046709,-1222.58142477,0.00013,2]
[336795482,1725159046720,-1673.54415866,0.00013,2]
[336795483,1725159046731,-5966.55757461,0.00013,2]
[336795484,1725159046741,-631.37538617,0.00013,2]
[336795485,1725159046753,-7806.3,0.00013,2]
[336795488,1725159046765,-450.0,0.00013,2]
[336795489,1725159046776,-898.99522388,0.00013,2]
[336795490,1725159046787,-418.84953567,0.00013,2]
[336795491,1725159046798,-356.88365472,0.00013,2]
[336795492,1725159046809,-416.5696332,0.00013,2]
[336795493,1725159206817,201.281128,0.00023999,120]
[336795495,1725159253218,783.0,0.00024,120]
[336795496,1725159418459,155.61,0.00010669,2]
[336795497,1725159448992,168.69,9.647e-05,2]
[336795504,1725159762914,550.0,0.00011,2]
[336795505,1725159808162,200.0,0.00023999,120]
[336795507,1725160020255,154.63,0.00010959,2]
[336795508,1725160038378,-1728.0845622,0.00011765,2]
[336795509,1725160038398,-1728.0845622,0.00011766,2]
[336795510,1725160038418,-1343.8308756,0.00011767,2]
[336795511,1725160047969,168.69,9.116e-05,2]
[336795512,1725160075739,197.53,9.937e-05,2]
[336795513,1725160146598,-384.2536866,0.00011759,2]
[336795514,1725160146628,-4542.6885233,0.00011849,2]
[336795521,1725160232613,-430.99,0.00011771,2]
[336795522,1725160232623,-1852.42,0.00011784,2]
[336795523,1725160232633,-160.0,0.00011798,2]
[336795524,1725160232642,-173.6,0.00011812,2]
[336795525,1725160232651,-417.52,0.00011815,2]
[336795526,1725160232661,-300.0,0.00011848,2]
[336795527,1725160232671,-104.75301953,0.00011849,2]
[336795528,1725160232682,-716.18874666,0.00011849,2]
[336795529,1725160232693,-648.12882621,0.00011849,2]
[336795530,1725160232705,-825.54249811,0.00011849,2]
[336795531,1725160232716,-17062.69838619,0.00011849,2]
[336795532,1725160232725,-538.86,0.00011855,2]
[336795533,1725160232735,-167.7,0.00011859,2]
[336795534,1725160232744,-250.0,0.00011865,2]
[336795535,1725160232753,-250.0,0.00011867,2]
[336795536,1725160232762,-6873.23,0.00011879,2]
[336795537,1725160232772,-197.53,0.00012201,2]
[336795538,1725160232781,-840.0,0.00012493,2]
[336795539,1725160232791,-178.78,0.00012578,2]
[336795540,1725160232800,-150.0,0.00012726,2]
[336795541,1725160232809,-150.0,0.00012728,2]
[336795542,1725160232818,-150.0,0.00012729,2]
[336795543,1725160232828,-150.0,0.0001273,2]
[336795544,1725160232837,-286.21,0.0001273,2]
[336795545,1725160232846,-150.0,0.00012731,2]
[336795546,1725160232856,-150.0,0.00012731,2]
[336795547,1725160232865,-150.0,0.00012732,2]
[336795548,1725160232874,-150.0,0.00012734,2]
[336795549,1725160232883,-150.0,0.00012734,2]
[336795550,1725160232892,-150.0,0.00012738,2]
[336795551,1725160232902,-150.0,0.00012738,2]
[336795552,1725160232911,-150.0,0.00012746,2]
[336795553,1725160232920,-150.0,0.00012751,2]
[336795554,1725160232930,-150.0,0.00012755,2]
[336795555,1725160232939,-150.0,0.00012755,2]
[336795556,1725160232949,-150.0,0.00012757,2]
[336795557,1725160232959,-150.0,0.00012762,2]
[336795558,1725160232968,-150.0,0.00012762,2]
[336795559,1725160232977,-150.0,0.00012766,2]
[336795560,1725160232986,-150.0,0.00012768,2]
[336795561,1725160232995,-150.0,0.00012773,2]
[336795562,1725160233005,-150.0,0.00012774,2]
[336795563,1725160233014,-150.0,0.00012775,2]
[336795564,1725160233023,-150.0,0.00012781,2]
[336795565,1725160233033,-150.0,0.00012785,2]
[336795566,1725160233042,-150.0,0.00012788,2]
[336795567,1725160233051,-150.0,0.0001279,2]
[336795568,1725160233061,-150.0,0.0001279,2]
[336795569,1725160233070,-150.0,0.00012791,2]
[336795570,1725160233080,-150.0,0.00012796,2]
[336795571,1725160233090,-800.2358121,0.000128,2]
[336795572,1725160233100,-1634.0,0.000128,2]
[336795573,1725160233109,-150.0,0.00012802,2]
[336795574,1725160233119,-150.0,0.0001281,2]
[336795575,1725160233128,-150.0,0.00012812,2]
[336795576,1725160233137,-150.0,0.00012814,2]
[336795577,1725160233146,-150.0,0.00012815,2]
[336795578,1725160233158,-150.0,0.00012819,2]
[336795579,1725160233167,-150.0,0.00012821,2]
[336795580,1725160233176,-150.0,0.00012829,2]
[336795581,1725160233186,-150.0,0.0001283,2]
[336795582,1725160233195,-150.0,0.00012832,2]
[336795583,1725160233205,-150.0,0.00012837,2]
[336795584,1725160233214,-150.0,0.00012837,2]
[336795585,1725160233223,-150.0,0.00012839,2]
[336795586,1725160233232,-150.0,0.0001284,2]
[336795587,1725160233243,-150.0,0.00012841,2]
[336795588,1725160233252,-150.0,0.00012845,2]
[336795589,1725160233261,-150.0,0.00012846,2]
[336795590,1725160233270,-150.0,0.0001285,2]
[336795591,1725160233280,-150.0,0.00012851,2]
[336795592,1725160233289,-150.0,0.00012852,2]
[336795593,1725160233298,-150.0,0.00012854,2]
[336795594,1725160233307,-150.0,0.00012855,2]
[336795595,1725160233316,-150.0,0.00012856,2]
[336795596,1725160233325,-150.0,0.00012858,2]
[336795597,1725160233334,-150.0,0.00012859,2]
[336795598,1725160233343,-150.0,0.00012863,2]
[336795599,1725160233352,-2683.34075,0.0001287,2]
[336795600,1725160233361,-150.0,0.00012874,2]
[336795601,1725160233370,-302.05,0.00012878,2]
[336795602,1725160233379,-430.42,0.00012878,2]
[336795603,1725160233388,-359.6,0.00012878,2]
[336795604,1725160233397,-150.0,0.00012879,2]
[336795605,1725160233406,-150.0,0.00012883,2]
[336795606,1725160233417,-150.0,0.00012891,2]
[336795607,1725160233426,-150.0,0.00012893,2]
[336795608,1725160233435,-150.0,0.00012894,2]
[336795609,1725160233445,-4384.6199,0.00012896,2]
[336795610,1725160233454,-150.0,0.00012896,2]
[336795611,1725160233464,-500.0,0.00012896,2]
[336795612,1725160233473,-150.0,0.00012898,2]
[336795613,1725160233483,-850.169,0.00012899,2]
[336795614,1725160233492,-2973.5535,0.00012899,2]
[336795615,1725160233501,-746.3636,0.000129,2]
[336795616,1725160233510,-1000.0,0.000129,2]
[336795617,1725160233519,-168.1012,0.000129,2]
[336795618,1725160233528,-6031.2183,0.000129,2]
[336795619,1725160233537,-960.6838,0.000129,2]
[336795620,1725160233546,-935.7161,0.000129,2]
[336795621,1725160233555,-4963.6054,0.000129,2]
[336795622,1725160233564,-1939.4253,0.000129,2]
[336795623,1725160233574,-500.0,0.000129,2]
[336795624,1725160233583,-762.4589,0.000129,2]
[336795625,1725160233593,-39229.3798,0.000129,2]
[336795626,1725160233602,-83131.09496372,0.000129,2]
[336795627,1725160233616,-956.77237349,0.000129,2]
[336795628,1725160233627,-1690.12155566,0.000129,2]
[336795629,1725160233638,-6636.11737844,0.000129,2]
[336795630,1725160233649,-7585.89372869,0.000129,2]
[336795631,1725160233658,-2500.0,0.000129,2]
[336795632,1725160233667,-285.48920652,0.000129,2]
[336795633,1725160233678,-619.14994573,0.000129,2]
[336795634,1725160233689,-397.7418011,0.000129,2]
[336795635,1725160233701,-91.33304665,0.000129,2]
[336795636,1725160233713,-155.97369366,0.000129,2]
[336795637,1725160233722,-305.65924695,0.000129,2]
[336795638,1725160233731,-476.11154421,0.000129,2]
[336795639,1725160233742,-21.52143571,0.000129,2]
[336795640,1725160233752,-150.0,0.00012903,2]
[336795641,1725160233761,-150.0,0.00012905,2]
[336795642,1725160233770,-150.0,0.00012905,2]
[336795643,1725160233779,-150.0,0.00012908,2]
[336795644,1725160233788,-150.0,0.00012908,2]
[336795645,1725160233797,-150.0,0.00012911,2]
[336795646,1725160233807,-150.0,0.00012913,2]
[336795647,1725160233817,-150.0,0.00012915,2]
[336795648,1725160233826,-150.0,0.00012915,2]
[336795649,1725160233836,-150.0,0.00012915,2]
[336795650,1725160233845,-150.0,0.00012916,2]
[336795651,1725160233855,-150.0,0.00012919,2]
[336795652,1725160233864,-150.0,0.00012919,2]
[336795653,1725160233873,-150.0,0.00012921,2]
[336795654,1725160233883,-150.0,0.00012922,2]
[336795655,1725160234154,-150.0,0.00012925,2]
[336795656,1725160234163,-150.0,0.00012927,2]
[336795657,1725160234172,-150.0,0.0001293,2]
[336795658,1725160234181,-150.0,0.00012932,2]
[336795659,1725160234191,-150.0,0.00012935,2]
[336795660,1725160234201,-150.0,0.00012936,2]
[336795661,1725160234218,-150.0,0.00012936,2]
[336795662,1725160234227,-150.0,0.00012942,2]
[336795663,1725160234238,-150.0,0.00012943,2]
[336795664,1725160234247,-150.0,0.00012946,2]
[336795665,1725160234257,-150.0,0.00012947,2]
[336795666,1725160234269,-150.0,0.00012948,2]
[336795667,1725160234278,-150.0,0.0001295,2]
[336795668,1725160234288,-150.0,0.00012951,2]
[336795669,1725160234297,-150.0,0.00012953,2]
[336795670,1725160234307,-150.0,0.00012956,2]
[336795671,1725160234316,-150.0,0.00012957,2]
[336795672,1725160234326,-150.0,0.00012966,2]
[336795673,1725160234336,-150.0,0.00012971,2]
[336795674,1725160234345,-150.0,0.00012972,2]
[336795675,1725160234356,-150.0,0.00012992,2]
[336795676,1725160234366,-150.0,0.00012993,2]
[336795677,1725160234375,-3110.29434707,0.00012993,2]
[336795678,1725160234388,-3076.27278557,0.00012993,2]
[336795679,1725160234397,-1093.8623813,0.00012996,2]
[336795680,1725160234406,-288.82168211,0.00012996,2]
[336795681,1725160234418,-1653.23615029,0.00012996,2]
[336795682,1725160234427,-1013.06252637,0.00012996,2]
[336795683,1725160234442,-904.08234998,0.00012996,2]
[336795684,1725160234453,-1450.0,0.00012996,2]
[336795685,1725160234467,-528.39973584,0.00012996,2]
[336795686,1725160234479,-8971.18423279,0.00012996,2]
[336795687,1725160234491,-465.65120639,0.00012996,2]
[336795688,1725160234502,-1625.54718631,0.00012996,2]
[336795689,1725160234513,-320.66312088,0.00012996,2]
[336795690,1725160234524,-9759.33894984,0.00012996,2]
[336795691,1725160234533,-845.0,0.00013,2]
[336795692,1725160234542,-38859.36426251,0.00013,2]
[336795693,1725160234553,-479.17125333,0.00013,2]
[336795694,1725160234564,-505.38615579,0.00013,2]
[336795695,1725160234576,-1283.39985363,0.00013,2]
[336795696,1725160234587,-310.98169198,0.00013,2]
[336795697,1725160234598,-2213.34493257,0.00013,2]
[336795705,1725160238537,-916.57891682,0.000126,2]
[336795706,1725160238548,-83.42108318,0.000126,2]
[336795707,1725160238557,-27219.70990671,0.00013,2]
[336795708,1725160238568,-1363.28313491,0.00013,2]
[336795709,1725160238594,-2939.34453431,0.00013,2]
[336795710,1725160238605,-4204.82141487,0.00013,2]
[336795711,1725160238703,-1921.64848006,0.00013,2]
[336795712,1725160238714,-5686.33463656,0.00013,2]
[336795713,1725160238725,-394.14575585,0.00013,2]
[336795714,1725160238736,-2841.5102928,0.00013,2]
[336795715,1725160238747,-288.82541219,0.00013,2]
[336795716,1725160238758,-65420.71522461,0.00013,2]
[336795717,1725160238881,-986.47914127,0.00013,2]
[336795719,1725160238893,-2894.2789726,0.00013,2]
[336795722,1725160238903,-2076.34305428,0.00013,2]
[336795724,1725160238915,-1923.62597814,0.00013,2]
[336795726,1725160238925,-2756.36521699,0.00013,2]
[336795728,1725160238936,-999.9592,0.00013,2]
[336795871,1725160240674,-2133.95816476,0.00013,2]
[336795872,1725160240714,-51.8919863,0.00013,2]
[336795873,1725160240726,-576.99,0.00013,2]
[336795874,1725160240738,-1608.91586877,0.00013,2]
[336795875,1725160240750,-2867.68256956,0.00013,2]
[336795876,1725160240763,-3582.58509352,0.00013,2]
[336795877,1725160240774,-27241.57039901,0.00013,2]
[336795878,1725160240784,-2999.85821254,0.00013,2]
[336795879,1725160240797,-467.63647261,0.00013,2]
[336795880,1725160240808,-437774.27350635,0.00013,2]
[336795881,1725160240817,-996247.14769779,0.00013,2]
[336795882,1725160240827,-2296.72,0.00013,2]
[336795883,1725160240839,-1270968.47328053,0.00013,2]
[336795884,1725160240852,-43763.97841864,0.00013,2]
[336795885,1725160240863,-8716.30726085,0.00013,2]
[336796107,1725160243677,-181.57844867,0.000129,2]
[336796108,1725160243687,-756.0,0.00013,2]
[336796110,1725160243697,-507.53755305,0.00013,2]
[336796112,1725160243709,-1064.79440349,0.00013,2]
[336796114,1725160243724,-580.5241446,0.00013,2]
[336796167,1725160244354,-528.85885242,0.00013,2]
[336796168,1725160244367,-747.85523931,0.00013,2]
[336796169,1725160246567,-344.849717,0.00012999,2]
[336796170,1725160246579,-957.52,0.00012999,2]
[336796171,1725160246591,-371.88291753,0.00012999,2]
[336796172,1725160246602,-1324.8,0.00012999,2]
[336796173,1725160246613,-611.967,0.00012999,2]
[336796174,1725160246624,-14079.35118407,0.00012999,2]
[336796175,1725160246633,-1363.52165494,0.00013,2]
[336796176,1725160246645,-25773.32341151,0.00013,2]
[336796177,1725160246655,-54382.93950366,0.00013,2]
[336796178,1725160246666,-298.66236919,0.00013,2]
[336796179,1725160246785,-183139.4812003,0.00013,2]
[336796180,1725160246846,-335025.25171471,0.00013,2]
[336796181,1725160246857,-388.80697699,0.00013,2]
[336796183,1725160562782,226.48,0.00010231,2]
[336796185,1725160609756,166.28,0.00010959,2]
[336796186,1725160610137,168.69,9.36e-05,2]
[336796187,1725161090323,215.15,9.66e-05,2]
[336796189,1725161108262,150.0,0.0001099,2]
[336796190,1725161108284,150.0,0.0001099,2]
[336796191,1725161108305,121.59005877,0.0001099,2]
[336796192,1725161133702,150.0,0.0001,2]
[336796193,1725161133724,79.08946716,0.0001,2]
[336796194,1725161159797,150.0,9e-05,2]
[336796195,1725161159818,10.67175595,9e-05,2]
[336796196,1725161230387,150.0,0.00010999,2]
[336796197,1725161230408,238.64871812,0.00010999,2]
[336796198,1725161230429,160.8905742,0.00010999,2]
[336796199,1725161277907,4784.37702022,0.0001,2]
[336796200,1725161280996,176716.47101371,0.00011,2]
[336796201,1725161281023,209715.47761377,0.00011,2]
[336796202,1725161281047,22000.0,0.00011,2]
[336796203,1725161314292,1011.05204292,0.00010998,2]
[336796207,1725161341478,300.0,0.00010999,2]
[336796208,1725161357795,300.0,0.00010945,2]
[336796209,1725161359664,-5169.4497888,0.00011,2]
[336796210,1725161359714,-5169.4497888,0.00011,2]
[336796211,1725161359775,-761.49603627,0.00011,2]
[336796212,1725161384963,-3235.50107656,0.00011,2]
[336796213,1725161399572,168.69,8.702e-05,2]
[336796214,1725161402635,150.0,0.00010999,2]
[336796222,1725161431626,-3065.28778418,0.00011,2]
[336796223,1725161431638,-517.67,0.00011,2]
[336796224,1725161431648,-9423.99800782,0.00011,2]
[336796225,1725161431659,-456.33428005,0.00011,2]
[336796226,1725161431671,-2612.32441227,0.00011,2]
[336796227,1725161431684,-1516.47244228,0.00011,2]
[336796228,1725161431696,-1472.97,0.00011,2]
[336796229,1725161431845,-16369.32727548,0.00011,2]
[336796231,1725161431856,-287611.99999998,0.00011,2]
[336796233,1725161431867,-690.8245438,0.00011,2]
[336796235,1725161431878,-500.0,0.00011,2]
[336796239,1725161437782,-392216.65731852,0.00011,2]
[336796240,1725161437793,-287.34726879,0.00011,2]
[336796241,1725161437804,-27428.65124824,0.00011,2]
[336796242,1725161437815,-645.02245604,0.00011,2]
[336796243,1725161437826,-1109.20886868,0.00011,2]
[336796264,1725161438164,-5271.64255927,0.00011,2]
[336796321,1725161438717,-63650.15497159,0.00011,2]
[336796330,1725161438805,-471.26757877,0.00011,2]
[336796373,1725161439808,-3017.256,0.00011,2]
[336796374,1725161439820,-3380.424834,0.00011,2]
[336796375,1725161439831,-37533.08178596,0.00011,2]
[336796376,1725161439842,-347.86342043,0.00011,2]